fUSD/lending_fUSD_20251013
["ID","MTS","AMOUNT","RATE_DAILY","PERIOD"]
[391095786,1760333440565,-5000.0,0.0001478,2]
[391095787,1760333440574,-1000.0,0.0001478,2]
[391095788,1760333440583,-109035.1843,0.0001478,2]
[391095789,1760333440592,-1413.72,0.0001478,2]
[391095790,1760333440601,-198.971606,0.0001478,2]
[391095791,1760333440610,-783.558232,0.0001478,2]
[391095792,1760333440620,-198.971606,0.0001478,2]
[391095793,1760333440629,-783.558232,0.0001478,2]
[391095794,1760333440638,-151.0,0.0001478,2]
[391095795,1760333440647,-1240.789763,0.0001478,2]
[391095796,1760333440656,-198.971606,0.0001478,2]
[391095797,1760333440665,-783.558232,0.0001478,2]
[391095798,1760333440674,-151.0,0.0001478,2]
[391095799,1760333440683,-151.0,0.0001478,2]
[391095800,1760333440692,-198.971606,0.0001478,2]
[391095801,1760333440700,-783.558232,0.0001478,2]
[391095802,1760333440710,-1240.789763,0.0001478,2]
[391095803,1760333440719,-451.436667,0.0001478,2]
[391095804,1760333440727,-151.0,0.0001478,2]
[391095805,1760333440737,-1240.789763,0.0001478,2]
[391095806,1760333440746,-451.436667,0.0001478,2]
[391095807,1760333440755,-151.0,0.0001478,2]
[391095808,1760333440764,-1240.789763,0.0001478,2]
[391095809,1760333440774,-451.436667,0.0001478,2]
[391095810,1760333440784,-151.0,0.0001478,2]
[391095811,1760333440792,-151.0,0.0001478,2]
[391095812,1760333440803,-451.436667,0.0001478,2]
[391095813,1760333440812,-151.0,0.0001478,2]
[391095814,1760333440821,-151.0,0.0001478,2]
[391095815,1760333440830,-151.0,0.0001478,2]
[391095816,1760333440839,-151.0,0.0001478,2]
[391095817,1760333440848,-151.0,0.0001478,2]
[391095818,1760333440857,-151.0,0.0001478,2]
[391095819,1760333440866,-151.0,0.0001478,2]
[391095820,1760333440875,-182.739697,0.0001478,2]
[391095821,1760333440884,-189.373446,0.0001478,2]
[391095822,1760333440894,-151.0,0.0001478,2]
[391095823,1760333440903,-151.0,0.0001478,2]
[391095824,1760333440912,-182.739697,0.0001478,2]
[391095825,1760333440921,-189.373446,0.0001478,2]
[391095826,1760333440930,-151.0,0.0001478,2]
[391095827,1760333440940,-151.0,0.0001478,2]
[391095828,1760333440949,-152.607874,0.0001478,2]
[391095829,1760333440958,-182.739697,0.0001478,2]
[391095830,1760333440967,-189.373446,0.0001478,2]
[391095831,1760333440976,-477.658012,0.0001478,2]
[391095832,1760333440985,-151.0,0.0001478,2]
[391095833,1760333440994,-182.739697,0.0001478,2]
[391095834,1760333441003,-189.373446,0.0001478,2]
[391095835,1760333441013,-477.658012,0.0001478,2]
[391095836,1760333441022,-243.353414,0.0001478,2]
[391095837,1760333441031,-477.658012,0.0001478,2]
[391095838,1760333441040,-477.658012,0.0001478,2]
[391095839,1760333441049,-243.353414,0.0001478,2]
[391095840,1760333441058,-151.0,0.0001478,2]
[391095841,1760333441067,-151.0,0.0001478,2]
[391095842,1760333441076,-243.353414,0.0001478,2]
[391095843,1760333441085,-243.353414,0.0001478,2]
[391095844,1760333441094,-151.0,0.0001478,2]
[391095845,1760333441103,-154.140287,0.0001478,2]
[391095846,1760333441112,-151.0,0.0001478,2]
[391095847,1760333441121,-151.816508,0.0001478,2]
[391095848,1760333441130,-1374.490779,0.0001478,2]
[391095849,1760333441139,-623.826834,0.0001478,2]
[391095850,1760333441148,-1374.490779,0.0001478,2]
[391095851,1760333441157,-623.826834,0.0001478,2]
[391095852,1760333441166,-1374.490779,0.0001478,2]
[391095853,1760333441176,-219.113782,0.0001478,2]
[391095854,1760333441186,-623.826834,0.0001478,2]
[391095855,1760333441195,-1374.490779,0.0001478,2]
[391095856,1760333441205,-219.113782,0.0001478,2]
[391095857,1760333441214,-623.826834,0.0001478,2]
[391095858,1760333441224,-219.113782,0.0001478,2]
[391095859,1760333441233,-219.113782,0.0001478,2]
[391095860,1760333441242,-151.0,0.0001478,2]
[391095861,1760333441252,-151.0,0.0001478,2]
[391095862,1760333441261,-152.697479,0.0001478,2]
[391095863,1760333441271,-151.0,0.0001478,2]
[391095864,1760333441281,-331.277803,0.0001478,2]
[391095865,1760333441290,-331.277803,0.0001478,2]
[391095866,1760333441300,-151.0,0.0001478,2]
[391095867,1760333441309,-331.277803,0.0001478,2]
[391095868,1760333441318,-151.0,0.0001478,2]
[391095869,1760333441327,-331.277803,0.0001478,2]
[391095870,1760333441336,-151.0,0.0001478,2]
[391095871,1760333441345,-151.0,0.0001478,2]
[391095872,1760333441354,-248.155206,0.0001478,2]
[391095873,1760333441363,-491.325993,0.0001478,2]
[391095874,1760333441372,-248.155206,0.0001478,2]
[391095875,1760333441382,-491.325993,0.0001478,2]
[391095876,1760333441391,-151.0,0.0001478,2]
[391095877,1760333441400,-248.155206,0.0001478,2]
[391095878,1760333441409,-151.0,0.0001478,2]
[391095879,1760333441418,-491.325993,0.0001478,2]
[391095880,1760333441429,-248.155206,0.0001478,2]
[391095881,1760333441439,-491.325993,0.0001478,2]
[391095882,1760333441449,-151.0,0.0001478,2]
[391095883,1760333441460,-151.0,0.0001478,2]
[391095884,1760333441470,-151.0,0.0001478,2]
[391095885,1760333441479,-151.0,0.0001478,2]
[391095886,1760333441487,-151.0,0.0001478,2]
[391095887,1760333441497,-8280.210488,0.0001478,2]
[391095888,1760333441506,-151.0,0.0001478,2]
[391095889,1760333441515,-741.350421,0.0001478,2]
[391095890,1760333441524,-552.249586,0.0001478,2]
[391095891,1760333441536,-8280.210488,0.0001478,2]
[391095892,1760333441545,-151.0,0.0001478,2]
[391095893,1760333441554,-208.668106,0.0001478,2]
[391095894,1760333441563,-341.819768,0.0001478,2]
[391095895,1760333441572,-741.350421,0.0001478,2]
[391095896,1760333441582,-552.249586,0.0001478,2]
[391095897,1760333441591,-8280.210488,0.0001478,2]
[391095898,1760333441600,-208.668106,0.0001478,2]
[391095899,1760333441610,-341.819768,0.0001478,2]
[391095900,1760333441620,-741.350421,0.0001478,2]
[391095901,1760333441630,-8280.210488,0.0001478,2]
[391095902,1760333441640,-151.0,0.0001478,2]
[391095903,1760333441652,-552.249586,0.0001478,2]
[391095904,1760333441662,-341.819768,0.0001478,2]
[391095905,1760333441673,-741.350421,0.0001478,2]
[391095906,1760333441683,-208.668106,0.0001478,2]
[391095907,1760333441694,-552.249586,0.0001478,2]
[391095908,1760333441703,-151.0,0.0001478,2]
[391095909,1760333441712,-341.819768,0.0001478,2]
[391095910,1760333441721,-208.668106,0.0001478,2]
[391095911,1760333441731,-151.0,0.0001478,2]
[391095912,1760333441741,-212.186342,0.0001478,2]
[391095913,1760333441750,-151.0,0.0001478,2]
[391095914,1760333441759,-212.186342,0.0001478,2]
[391095915,1760333441768,-212.186342,0.0001478,2]
[391095916,1760333441777,-212.186342,0.0001478,2]
[391095917,1760333441786,-151.0,0.0001478,2]
[391095918,1760333441796,-151.0,0.0001478,2]
[391095919,1760333441805,-151.0,0.0001478,2]
[391095920,1760333441814,-2460.27658,0.0001478,2]
[391095921,1760333441824,-151.0,0.0001478,2]
[391095922,1760333441833,-2460.27658,0.0001478,2]
[391095923,1760333441843,-151.0,0.0001478,2]
[391095924,1760333441852,-2460.27658,0.0001478,2]
[391095925,1760333441861,-2460.27658,0.0001478,2]
[391095926,1760333441870,-448.255679,0.0001478,2]
[391095927,1760333441880,-12000.0,0.0001478,2]
[391095928,1760333441889,-12000.0,0.0001478,2]
[391095929,1760333441898,-448.255679,0.0001478,2]
[391095930,1760333441907,-151.0,0.0001478,2]
[391095931,1760333441916,-12000.0,0.0001478,2]
[391095932,1760333441925,-448.255679,0.0001478,2]
[391095933,1760333441935,-151.0,0.0001478,2]
[391095934,1760333441944,-12000.0,0.0001478,2]
[391095935,1760333441953,-445.507767,0.0001478,2]
[391095936,1760333441962,-448.255679,0.0001478,2]
[391095937,1760333441972,-151.0,0.0001478,2]
[391095938,1760333441981,-4604.47199,0.0001478,2]
[391095939,1760333441990,-445.507767,0.0001478,2]
[391095940,1760333441999,-445.507767,0.0001478,2]
[391095941,1760333442008,-445.507767,0.0001478,2]
[391095942,1760333442017,-151.0,0.0001478,2]
[391095943,1760333442027,-1788.51751,0.0001478,2]
[391095944,1760333442036,-151.0,0.0001478,2]
[391095945,1760333442045,-1131.84158507,0.00014783,2]
[391095946,1760333442054,-845.56957959,0.00014792,2]
[391095947,1760333442063,-335.0,0.00014795,2]
[391095948,1760333442072,-1000.0,0.000148,2]
[391095949,1760333442090,-8107.00946385,0.00014804,2]
[391095950,1760333442101,-1000.0,0.0001481,2]
[391095951,1760333442110,-200.0,0.00014821,2]
[391095952,1760333442119,-151.0,0.00014824,2]
[391095953,1760333442128,-151.0,0.00014824,2]
[391095954,1760333442137,-151.0,0.00014824,2]
[391095955,1760333442146,-151.0,0.00014824,2]
[391095956,1760333442156,-151.85575831,0.00014824,2]
[391095957,1760333442166,-1000.0,0.00014839,2]
[391095958,1760333442175,-195.0,0.00014849,2]
[391095959,1760333442184,-300.0,0.00014849,2]
[391095960,1760333442194,-300.0,0.00014849,2]
[391095961,1760333442203,-150.0,0.00014849,2]
[391095962,1760333442212,-1425.0,0.0001485,2]
[391095963,1760333442221,-151.0,0.0001485,2]
[391095964,1760333442231,-151.0,0.0001485,2]
[391095965,1760333442239,-151.0,0.0001485,2]
[391095966,1760333442249,-151.0,0.0001485,2]
[391095967,1760333442259,-151.0,0.0001485,2]
[391095968,1760333442273,-151.0,0.0001485,2]
[391095969,1760333442283,-213.370758,0.0001485,2]
[391095970,1760333442292,-151.0,0.0001485,2]
[391095971,1760333442301,-151.0,0.0001485,2]
[391095972,1760333442310,-151.0,0.0001485,2]
[391095973,1760333442319,-151.0,0.0001485,2]
[391095974,1760333442329,-151.0,0.0001485,2]
[391095975,1760333442338,-151.0,0.0001485,2]
[391095976,1760333442347,-151.0,0.0001485,2]
[391095977,1760333442356,-151.0,0.0001485,2]
[391095978,1760333442366,-151.0,0.0001485,2]
[391095984,1760333442725,-308.326658,0.0001485,2]
[391095986,1760333442770,-151.0,0.0001485,2]
[391095988,1760333442780,-308.326658,0.0001485,2]
[391095990,1760333442789,-308.326658,0.0001485,2]
[391095991,1760333442799,-308.326658,0.0001485,2]
[391095993,1760333442808,-452.757063,0.0001485,2]
[391095995,1760333442818,-452.757063,0.0001485,2]
[391095996,1760333442827,-151.0,0.0001485,2]
[391096000,1760333442837,-452.757063,0.0001485,2]
[391096001,1760333442847,-151.0,0.0001485,2]
[391096003,1760333442856,-452.757063,0.0001485,2]
[391096005,1760333442865,-217.871253,0.0001485,2]
[391096007,1760333442874,-217.871253,0.0001485,2]
[391096009,1760333442883,-217.871253,0.0001485,2]
[391096011,1760333442893,-217.871253,0.0001485,2]
[391096014,1760333442903,-209.080891,0.0001485,2]
[391096016,1760333442912,-151.0,0.0001485,2]
[391096018,1760333442922,-209.080891,0.0001485,2]
[391096020,1760333442934,-151.0,0.0001485,2]
[391096022,1760333442943,-209.080891,0.0001485,2]
[391096024,1760333442952,-209.080891,0.0001485,2]
[391096026,1760333442962,-151.0,0.0001485,2]
[391096028,1760333442971,-151.0,0.0001485,2]
[391096030,1760333442980,-151.0,0.0001485,2]
[391096032,1760333442989,-151.519186,0.0001485,2]
[391096034,1760333442998,-151.0,0.0001485,2]
[391096036,1760333443007,-2673.159958,0.0001485,2]
[391096038,1760333443016,-151.0,0.0001485,2]
[391096040,1760333443026,-2673.159958,0.0001485,2]
[391096042,1760333443035,-2673.159958,0.0001485,2]
[391096044,1760333443044,-2673.159958,0.0001485,2]
[391096046,1760333443054,-421.58856,0.0001485,2]
[391096048,1760333443063,-421.58856,0.0001485,2]
[391096050,1760333443072,-421.58856,0.0001485,2]
[391096052,1760333443081,-421.58856,0.0001485,2]
[391096054,1760333443090,-151.0,0.0001485,2]
[391096055,1760333443099,-151.0,0.0001485,2]
[391096056,1760333443109,-250.0,0.0001485,2]
[391096057,1760333443118,-195.0,0.0001485,2]
[391096058,1760333443130,-8107.00946385,0.00014852,2]
[391096059,1760333443139,-335.0,0.00014861,2]
[391096060,1760333443148,-500.0,0.00014864,2]
[391096061,1760333443157,-891.27,0.00014869,2]
[391096062,1760333443166,-500.0,0.00014869,2]
[391096063,1760333443175,-500.0,0.00014869,2]
[391096064,1760333443184,-195.08041477,0.00014869,2]
[391096065,1760333443194,-500.0,0.00014869,2]
[391096066,1760333443203,-468.47978158,0.00014869,2]
[391096067,1760333443212,-345.04917145,0.00014869,2]
[391096068,1760333443222,-500.0,0.00014869,2]
[391096069,1760333443231,-500.0,0.00014869,2]
[391096070,1760333443240,-482.83425863,0.00014869,2]
[391096071,1760333443250,-500.0,0.00014869,2]
[391096072,1760333443259,-500.0,0.00014869,2]
[391096073,1760333443268,-500.0,0.00014869,2]
[391096074,1760333443277,-564.43508566,0.00014869,2]
[391096075,1760333443286,-163.26575107,0.00014869,2]
[391096076,1760333443295,-15320.8862594,0.0001487,2]
[391096077,1760333443304,-151.45736606,0.0001487,2]
[391096078,1760333443313,-2460.27658,0.0001487,2]
[391096079,1760333443325,-2460.27658,0.0001487,2]
[391096080,1760333443334,-2460.27658,0.0001487,2]
[391096081,1760333443343,-542.63441164,0.0001487,2]
[391096083,1760333444813,-626.56256331,0.0001487,2]
[391096084,1760333444987,-1291.07960505,0.0001487,2]
[391096085,1760333444996,-448.255679,0.0001487,2]
[391096086,1760333445006,-522.66471595,0.0001487,2]
[391096087,1760333445050,-3074.11696811,0.0001487,2]
[391096088,1760333445061,-7149.21082,0.0001487,2]
[391096089,1760333445072,-1254.00749594,0.0001487,2]
[391096090,1760333445081,-448.255679,0.0001487,2]
[391096091,1760333445091,-9645.42323867,0.0001487,2]
[391096092,1760333445849,-309.75679222,0.0001478,2]
[391096093,1760333445909,-345.37052734,0.0001478,2]
[391096094,1760333446208,-1133.39019044,0.0001478,2]
[391096095,1760333446217,-151.0,0.0001478,2]
[391096096,1760333446227,-151.0,0.0001478,2]
[391096097,1760333446236,-1788.51751,0.0001478,2]
[391096098,1760333446246,-151.0,0.0001478,2]
[391096099,1760333446255,-151.0,0.0001478,2]
[391096100,1760333446265,-1788.51751,0.0001478,2]
[391096101,1760333446275,-190.528062,0.0001478,2]
[391096102,1760333446284,-2354.57676133,0.0001487,2]
[391096103,1760333446294,-151.0,0.0001487,2]
[391096104,1760333446306,-12000.0,0.0001487,2]
[391096105,1760333446316,-448.255679,0.0001487,2]
[391096106,1760333446326,-151.0,0.0001487,2]
[391096107,1760333446335,-12000.0,0.0001487,2]
[391096108,1760333446346,-445.507767,0.0001487,2]
[391096109,1760333446355,-448.255679,0.0001487,2]
[391096110,1760333446367,-240.236609,0.0001487,2]
[391096111,1760333446378,-445.507767,0.0001487,2]
[391096112,1760333446388,-445.507767,0.0001487,2]
[391096113,1760333446397,-445.507767,0.0001487,2]
[391096114,1760333446409,-151.0,0.0001487,2]
[391096115,1760333446418,-1788.51751,0.0001487,2]
[391096116,1760333446427,-151.0,0.0001487,2]
[391096117,1760333446436,-1788.51751,0.0001487,2]
[391096118,1760333446447,-151.0,0.0001487,2]
[391096119,1760333446457,-151.0,0.0001487,2]
[391096120,1760333446468,-1788.51751,0.0001487,2]
[391096121,1760333446478,-151.0,0.0001487,2]
[391096122,1760333446487,-151.0,0.0001487,2]
[391096123,1760333446496,-1788.51751,0.0001487,2]
[391096124,1760333446506,-500.0,0.00014873,2]
[391096125,1760333446515,-500.67213646,0.00014873,2]
[391096126,1760333446524,-500.0,0.00014873,2]
[391096127,1760333446536,-500.0,0.00014873,2]
[391096128,1760333446545,-500.0,0.00014873,2]
[391096129,1760333446554,-500.0,0.00014874,2]
[391096130,1760333446563,-150.0,0.00014874,2]
[391096131,1760333446572,-1317.0,0.00014874,2]
[391096132,1760333446582,-500.0,0.00014874,2]
[391096133,1760333446591,-150.0,0.00014874,2]
[391096134,1760333446600,-150.0,0.00014874,2]
[391096135,1760333446610,-500.0,0.00014874,2]
[391096136,1760333446619,-150.61243539,0.00014874,2]
[391096137,1760333446628,-263.12983615,0.00014874,2]
[391096138,1760333446638,-500.0,0.00014874,2]
[391096139,1760333446647,-500.0,0.00014874,2]
[391096140,1760333446656,-150.0,0.00014874,2]
[391096141,1760333446665,-500.0,0.00014874,2]
[391096142,1760333446675,-252.05028089,0.00014874,2]
[391096143,1760333446684,-150.0,0.00014874,2]
[391096144,1760333446693,-500.0,0.00014874,2]
[391096145,1760333446702,-150.0,0.00014874,2]
[391096146,1760333446712,-150.0,0.00014874,2]
[391096147,1760333446721,-150.0,0.00014874,2]
[391096148,1760333446731,-500.0,0.00014879,2]
[391096149,1760333446741,-200.0,0.00014879,2]
[391096150,1760333446750,-2460.27658,0.00014879,2]
[391096151,1760333446760,-2460.27658,0.00014879,2]
[391096152,1760333446770,-821.0,0.00014879,2]
[391096153,1760333446780,-2460.27658,0.00014879,2]
[391096154,1760333446789,-821.0,0.00014879,2]
[391096155,1760333446799,-834.4015383,0.00014879,2]
[391096156,1760333446809,-2460.27658,0.00014879,2]
[391096157,1760333446818,-153.64251358,0.00014879,2]
[391096158,1760333446828,-448.255679,0.00014879,2]
[391096159,1760333446837,-12000.0,0.00014879,2]
[391096160,1760333446847,-448.255679,0.00014879,2]
[391096161,1760333446856,-12000.0,0.00014879,2]
[391096162,1760333446865,-151.0,0.00014879,2]
[391096163,1760333446874,-12000.0,0.00014879,2]
[391096164,1760333446883,-448.255679,0.00014879,2]
[391096165,1760333446893,-151.0,0.00014879,2]
[391096166,1760333446902,-12000.0,0.00014879,2]
[391096167,1760333446911,-445.507767,0.00014879,2]
[391096168,1760333446921,-448.255679,0.00014879,2]
[391096169,1760333446930,-445.507767,0.00014879,2]
[391096170,1760333446941,-445.507767,0.00014879,2]
[391096171,1760333446950,-445.507767,0.00014879,2]
[391096172,1760333446959,-151.0,0.00014879,2]
[391096173,1760333446968,-1788.51751,0.00014879,2]
[391096174,1760333446977,-151.0,0.00014879,2]
[391096175,1760333446986,-1788.51751,0.00014879,2]
[391096176,1760333446995,-179.404032,0.00014879,2]
[391096177,1760333447004,-151.0,0.00014879,2]
[391096178,1760333447014,-1788.51751,0.00014879,2]
[391096179,1760333447023,-151.0,0.00014879,2]
[391096180,1760333447033,-1788.51751,0.00014879,2]
[391096181,1760333447043,-2487.0,0.00014879,2]
[391096182,1760333447052,-93832.91045391,0.0001488,2]
[391096183,1760333447065,-68580.5572334,0.0001488,2]
[391096184,1760333447084,-486.03851992,0.0001488,2]
[391096185,1760333447096,-2953.18588478,0.0001488,2]
[391096186,1760333447119,-3724.76106646,0.0001488,2]
[391096188,1760333707153,150.0,0.00013813,120]
[391096189,1760334287581,269.78,6.695e-05,2]
[391096190,1760334287776,269.78,7.047e-05,2]
[391096191,1760334287982,269.78,7.399e-05,2]
[391096192,1760334288181,269.78,7.752e-05,2]
[391096193,1760334288373,269.78,8.104e-05,2]
[391096194,1760334288602,269.78,8.456e-05,2]
[391096195,1760334288800,269.78,8.809e-05,2]
[391096196,1760334289021,269.78,9.161e-05,2]
[391096197,1760334289214,269.78,9.513e-05,2]
[391096198,1760334289412,269.78,9.866e-05,2]
[391096199,1760334289674,269.78,0.00010218,2]
[391096200,1760334289874,269.78,0.00010571,2]
[391096201,1760334290147,269.78,0.00010923,2]
[391096202,1760334290347,269.78,0.00011275,2]
[391096203,1760334290743,269.78,0.00011628,2]
[391096204,1760334290945,269.78,0.0001198,2]
[391096205,1760334291145,269.78,0.00012332,2]
[391096206,1760334301248,-269.78,0.00012685,2]
[391096207,1760334301270,-230.22,0.00013037,2]
[391096208,1760334379593,165.31,0.00010631,2]
[391096209,1760334427408,500.0,0.00027392,120]
[391096210,1760334497268,-39.56,0.00013037,2]
[391096211,1760334497289,-142.78075959,0.00013119,2]
[391096212,1760334541248,-215.86258775,0.00013119,2]
[391096213,1760334541269,-27.41139728,0.00013178,2]
[391096214,1760334563750,500.0,0.00027392,120]
[391096215,1760334590142,500.0,0.00027397,120]
[391096216,1760334618907,500.0,0.00027397,120]
[391096228,1760334632028,-179.75601197,0.00013178,2]
[391096229,1760334632038,-2000.0,0.000132,2]
[391096230,1760334632048,-250.0,0.00013278,2]
[391096231,1760334632057,-1136.73,0.00013278,2]
[391096232,1760334632068,-1868.82,0.00013285,2]
[391096233,1760334632077,-1200.0,0.00013301,2]
[391096234,1760334632087,-1600.0,0.00013302,2]
[391096235,1760334632098,-150.0,0.00013364,2]
[391096236,1760334632107,-269.78,0.00013389,2]
[391096237,1760334632117,-319.07,0.00013648,2]
[391096238,1760334632126,-166.66,0.00013666,2]
[391096239,1760334632136,-300.0,0.00013698,2]
[391096240,1760334632150,-300.0,0.00013698,2]
[391096241,1760334632159,-1000.0,0.00013699,2]
[391096242,1760334632169,-517.92,0.00013758,2]
[391096243,1760334632179,-93.98399819,0.00013781,2]
[391096244,1760334632191,-461.73600181,0.00013781,2]
[391096245,1760334632201,-225.75,0.00013787,2]
[391096246,1760334632211,-150.0,0.00013813,2]
[391096247,1760334632221,-164.84,0.00013823,2]
[391096248,1760334632231,-366.33465756,0.00013884,2]
[391096249,1760334632240,-2346.46,0.00013885,2]
[391096250,1760334632250,-150.0,0.00013894,2]
[391096251,1760334632260,-151.0,0.00013895,2]
[391096252,1760334632271,-13.63651023,0.00013895,2]
[391096258,1760334632346,-137.36348977,0.00013895,2]
[391096260,1760334632357,-151.0,0.00013895,2]
[391096262,1760334632367,-200.0,0.00013895,2]
[391096264,1760334632377,-5.79077297,0.00013895,2]
[391096333,1760334637156,500.0,0.00027397,120]
[391096357,1760334638500,-203.83336351,0.00013895,2]
[391096358,1760334638510,-500.0,0.00013895,2]
[391096359,1760334638519,-475.56663649,0.00013895,2]
[391096368,1760334639959,-24.43336351,0.00013895,2]
[391096370,1760334639968,-500.0,0.00013895,2]
[391096372,1760334639978,-500.0,0.00013895,2]
[391096373,1760334639987,-633.69064915,0.00013895,2]
[391096374,1760334639996,-151.0,0.00013895,2]
[391096376,1760334640006,-151.0,0.00013895,2]
[391096377,1760334640015,-151.0,0.00013895,2]
[391096380,1760334640025,-136.27598734,0.00013895,2]
[391096382,1760334640037,-14.72401266,0.00013895,2]
[391096384,1760334640046,-151.0,0.00013895,2]
[391096386,1760334640055,-151.0,0.00013895,2]
[391096388,1760334640065,-151.0,0.00013895,2]
[391096390,1760334640074,-55.7733728,0.00013895,2]
[391096391,1760334640110,-144.2266272,0.00013895,2]
[391096392,1760334640119,-151.0,0.00013895,2]
[391096393,1760334640128,-161.52371828,0.00013895,2]
[391096394,1760334640137,-151.0,0.00013895,2]
[391096395,1760334640146,-151.0,0.00013895,2]
[391096396,1760334640155,-151.0,0.00013895,2]
[391096397,1760334640165,-151.0,0.00013895,2]
[391096398,1760334640174,-151.0,0.00013895,2]
[391096399,1760334640183,-151.0,0.00013895,2]
[391096400,1760334640192,-151.0,0.00013895,2]
[391096401,1760334640201,-151.0,0.00013895,2]
[391096402,1760334640210,-151.0,0.00013895,2]
[391096403,1760334640219,-151.0,0.00013895,2]
[391096404,1760334640228,-151.0,0.00013895,2]
[391096405,1760334640237,-151.0,0.00013895,2]
[391096406,1760334640247,-413.23,0.000139,2]
[391096407,1760334640256,-847.29199314,0.00013904,2]
[391096408,1760334640279,-1265.62301691,0.00013904,2]
[391096409,1760334640307,-915.6857705,0.00013904,2]
[391096410,1760334640318,-297.7262798,0.00013904,2]
[391096411,1760334640328,-682.60523184,0.00013904,2]
[391096421,1760334643398,-545.52427716,0.00013904,2]
[391096422,1760334643411,-552.94291536,0.00013904,2]
[391096423,1760334643422,-716.73120004,0.00013904,2]
[391096425,1760334645970,-5570.45453968,0.00013904,2]
[391096426,1760334646083,-568.5344981,0.00013904,2]
[391096427,1760334646200,-1797.15027747,0.00013904,2]
[391096428,1760334646209,-1032.4228054,0.00013933,2]
[391096429,1760334646260,-819.9971946,0.00013933,2]
[391096430,1760334646270,-159.38,0.00013955,2]
[391096431,1760334646279,-546.15,0.00014078,2]
[391096432,1760334646288,-2285.83120535,0.00014124,2]
[391096433,1760334852507,500.0,0.00027397,120]
[391096434,1760334852666,500.0,0.00027397,120]
[391096435,1760334852834,500.0,0.00027397,120]
[391096436,1760334853018,500.0,0.00027397,120]
[391096437,1760334853363,500.0,0.00027397,120]
[391096438,1760334853540,500.0,0.00027397,120]
[391096439,1760334853714,500.0,0.00027397,120]
[391096440,1760334853930,500.0,0.00027397,120]
[391096441,1760334854145,500.0,0.00027397,120]
[391096442,1760334854318,500.0,0.00027397,120]
[391096443,1760334854692,520.0,0.00027397,120]
[391096444,1760334963415,3970.74,0.00016,90]
[391096445,1760335389268,183.2422329,0.0001,2]
[391096449,1760335591270,-372.89864666,0.00012867,2]
[391096450,1760335595977,-255.91598012,0.00012867,2]
[391096451,1760335601546,-294.48663293,0.00012867,2]
[391096452,1760335604171,-399.04970753,0.00012867,2]
[391096453,1760335621229,-300.29377341,0.00012847,2]
[391096454,1760335623526,-620.41494097,0.00012847,2]
[391096455,1760335625200,-202.42644878,0.00012847,2]
[391096456,1760335627362,-199.18036275,0.00012847,2]
[391096457,1760335630474,-500.0,0.00012847,2]
[391096458,1760335632687,-152.52281191,0.00012847,2]
[391096459,1760335634849,-300.0,0.00012847,2]
[391096460,1760335651212,-476.16166218,0.00012847,2]
[391096461,1760335651234,-539.53128718,0.00012867,2]
[391096462,1760335696259,-228.97774558,0.00012867,2]
[391096463,1760335696282,-117.24649315,0.00013113,2]
[391096464,1760335699403,-163.0,0.00013113,2]
[391096465,1760335701166,-154.0,0.00013113,2]
[391096466,1760335702379,1000.68361437,0.00027397,120]
[391096467,1760335704738,-250.66650259,0.00013113,2]
[391096472,1760335708591,-286.02848769,0.00013113,2]